fUSD/lending_fUSD_20241114
["ID","MTS","AMOUNT","RATE_DAILY","PERIOD"]
[342207438,1731583176973,-244.1,0.000348,31]
[342207439,1731583177025,-244.1,0.000348,31]
[342207440,1731583177081,-244.1,0.000348,31]
[342207441,1731583177137,-244.1,0.000348,31]
[342207442,1731583177190,-244.1,0.000348,31]
[342207443,1731583177245,-244.1,0.000348,31]
[342207444,1731583177300,-244.1,0.000348,31]
[342207445,1731583177353,-244.1,0.000348,31]
[342207446,1731583177408,-244.1,0.000348,31]
[342207447,1731583177463,-244.1,0.000348,31]
[342207448,1731583177518,-244.1,0.000348,31]
[342207449,1731583177576,-800.0,0.00034822,120]
[342207450,1731583177630,-800.0,0.00034822,120]
[342207451,1731583177684,-800.0,0.00034822,120]
[342207452,1731583177739,-758.08,0.00034822,120]
[342207453,1731583177796,-618.69890399,0.00034904,30]
[342207454,1731583177851,-618.69890399,0.00034937,30]
[342207455,1731583179941,-800.0,0.00034959,120]
[342207456,1731583179993,-618.69890399,0.00034961,30]
[342207457,1731583180045,-618.69890399,0.00034962,30]
[342207458,1731583180102,-618.69890399,0.00034971,30]
[342207459,1731583180154,-618.69890399,0.00034975,30]
[342207460,1731583180208,-15950.56850442,0.00034979,30]
[342207461,1731583180261,-79752.30510732,0.0003498,30]
[342207462,1731583180311,-1057.89288792,0.00034982,30]
[342207463,1731583180364,-200.0,0.00034983,30]
[342207464,1731583180415,-633.38388194,0.00034984,30]
[342207465,1731583180466,-200.0,0.00034985,30]
[342207466,1731583180515,-800.0,0.00034986,120]
[342207467,1731583180565,-1396.055831,0.00034988,30]
[342207468,1731583180618,-1396.055831,0.00034988,30]
[342207469,1731583180670,-428.81469367,0.00034988,30]
[342207470,1731583180724,-243.98243949,0.00034991,30]
[342207471,1731583180777,-200.0,0.00034993,30]
[342207472,1731583180833,-1396.055831,0.00034993,30]
[342207473,1731583180885,-1057.89288792,0.00034994,30]
[342207474,1731583180937,-2829.79950759,0.00034994,30]
[342207475,1731583180988,-12601.59311682,0.00034995,30]
[342207476,1731583181045,-633.38388194,0.00034995,30]
[342207477,1731583181095,-1057.89288792,0.00034996,30]
[342207478,1731583181150,-14932.1930998,0.00034996,30]
[342207479,1731583181200,-12601.59311682,0.00034999,30]
[342207480,1731583181252,-50000.0,0.00035,35]
[342207481,1731583181306,-500.0,0.00035,120]
[342207482,1731583181358,-1800.0,0.00035,36]
[342207483,1731583181408,-700.0,0.00035,120]
[342207484,1731583181461,-1400.0,0.00035,120]
[342207485,1731583181513,-2887.0,0.00035,120]
[342207486,1731583181566,-7473.57571745,0.00035,60]
[342207487,1731583181619,-1000.0,0.00035,90]
[342207488,1731583181675,-237.96,0.00035,30]
[342207489,1731583181728,-66906.28768196,0.00035,120]
[342207490,1731583181780,-1002.0,0.00035,120]
[342207491,1731583181832,-2870.1082305,0.00035,31]
[342207492,1731583181884,-1171362.97322052,0.00035,120]
[342207493,1731583181939,-9000.0,0.00035,120]
[342207494,1731583181992,-607958.49,0.00035,30]
[342207495,1731583182043,-1000.0,0.00035,60]
[342207496,1731583182093,-3000.0,0.00035,60]
[342207497,1731583182148,-3000.0,0.00035,120]
[342207498,1731583182200,-3771.0,0.00035,120]
[342207499,1731583182253,-100000.0,0.00035,30]
[342207500,1731583182304,-202.1659269,0.00035,120]
[342207501,1731583182357,-5000.0,0.00035,120]
[342207502,1731583182411,-285.81697052,0.00035,30]
[342207503,1731583182464,-1195.1,0.00035,60]
[342207504,1731583182516,-23786.0,0.00035,120]
[342207505,1731583182575,-100000.0,0.00035,60]
[342207506,1731583182628,-2245.0,0.00035,94]
[342207507,1731583182681,-368.85352773,0.00035,120]
[342207508,1731583182733,-1280.0,0.00035,120]
[342207509,1731583182789,-1877.64772029,0.00035,120]
[342207510,1731583182840,-600.0,0.00035,30]
[342207511,1731583182890,-1000.0,0.00035,30]
[342207512,1731583182942,-19584.0,0.00035,30]
[342207513,1731583182996,-20229.0,0.00035,30]
[342207514,1731583183049,-10000.0,0.00035,120]
[342207515,1731583183103,-5000.0,0.00035,30]
[342207516,1731583183158,-5000.0,0.00035,30]
[342207517,1731583183209,-2000.0,0.00035,60]
[342207518,1731583183260,-2500.0,0.00035,120]
[342207519,1731583183311,-8000.0,0.00035,120]
[342207520,1731583183359,-511.36659437,0.00035,60]
[342207521,1731583183410,-356.0,0.00035,30]
[342207522,1731583183460,-200.89,0.00035,30]
[342207523,1731583183513,-5000.0,0.00035,30]
[342207524,1731583183570,-12805.0,0.00035,30]
[342207525,1731583183630,-3000.0,0.00035,120]
[342207526,1731583183962,-3208.4,0.00035,120]
[342207527,1731583184018,-150.0,0.00035,120]
[342207528,1731583184082,-25973.02758306,0.00035,30]
[342207529,1731583184138,-8780.19102002,0.00035,120]
[342207530,1731583184192,-200.0,0.00035,120]
[342207531,1731583184246,-56181.05,0.00035,30]
[342207532,1731583184300,-5000.0,0.00035,30]
[342207533,1731583184353,-150.0,0.00035,30]
[342207534,1731583184405,-8369.73757319,0.00035,30]
[342207535,1731583184467,-106032.64978543,0.00035,30]
[342207536,1731583184522,-10000.0,0.00035,120]
[342207537,1731583184577,-2089.0,0.00035,30]
[342207538,1731583184637,-100000.0,0.00035,30]
[342207539,1731583184692,-150.0,0.00035,30]
[342207540,1731583184744,-8263.9905365,0.00035,90]
[342207541,1731583184802,-8627.5437615,0.00035,30]
[342207542,1731583184855,-126636.35596578,0.00035,30]
[342207543,1731583184907,-150.0,0.00035005,120]
[342207544,1731583184960,-8552.37,0.00035046,30]
[342207545,1731583185011,-8552.37,0.00035046,30]
[342207546,1731583185062,-150.0,0.00035062,120]
[342207547,1731583185118,-579.59,0.00035068,60]
[342207548,1731583185172,-158.14213,0.000351,30]
[342207549,1731583185222,-150.0,0.00035113,120]
[342207550,1731583185275,-1000.0,0.00035131,30]
[342207551,1731583185331,-150.0,0.00035243,120]
[342207552,1731583185392,-10000.0,0.0003525,120]
[342207553,1731583185477,-150.0,0.00035267,120]
[342207554,1731583185546,-150.0,0.00035278,120]
[342207555,1731583185606,-20000.0,0.000353,30]
[342207556,1731583185660,-8552.37,0.00035319,30]
[342207557,1731583185712,-8552.37,0.00035319,30]
[342207558,1731583185767,-1000.0,0.00035329,30]
[342207559,1731583185819,-150.0,0.0003533,120]
[342207560,1731583185871,-150.0,0.00035333,120]
[342207561,1731583185924,-579.59,0.00035342,60]
[342207562,1731583185976,-150.0,0.00035349,120]
[342207563,1731583186028,-150.0,0.00035353,120]
[342207564,1731583186083,-161.156207,0.00035356,30]
[342207565,1731583186135,-150.0,0.00035362,120]
[342207566,1731583186191,-150.0,0.00035396,120]
[342207567,1731583186242,-749653.13516837,0.000354,120]
[342207568,1731583275822,800.0,0.00026986,120]
[342207572,1731583377931,1000.0,0.00027,60]
[342207598,1731583832058,-200.0,8.2e-05,2]
[342207600,1731583832068,-1083.39985363,8.219e-05,2]
[342207602,1731583832080,-894.79014637,8.219e-05,2]
[342207603,1731583832091,-250.0,8.996e-05,2]
[342207604,1731583832100,-653.54,9.073e-05,2]
[342207605,1731583832109,-328.16985403,9.199e-05,2]
[342207606,1731583832126,-302.1141,9.199e-05,2]
[342207607,1731583832184,-3340.21475992,9.199e-05,2]
[342207608,1731583832249,-19929.50128605,9.199e-05,2]
[342207609,1731583832260,-1000.0,9.2e-05,2]
[342207610,1731583832274,-250.0,9.212e-05,2]
[342207611,1731583832284,-763.3,9.22e-05,2]
[342207612,1731583832293,-432.72,9.22e-05,2]
[342207613,1731583832303,-722.39,9.278e-05,2]
[342207614,1731583832314,-150.0,9.278e-05,2]
[342207615,1731583832323,-967.89,9.278e-05,2]
[342207616,1731583832332,-946.79,9.282e-05,2]
[342207617,1731583832344,-150.0,9.378e-05,2]
[342207618,1731583832354,-150.0,9.378e-05,2]
[342207619,1731583832365,-325.32,9.378e-05,2]
[342207620,1731583832375,-300.0,9.6e-05,2]
[342207621,1731583832384,-302.33,9.652e-05,2]
[342207623,1731583832393,-751.035,9.682e-05,2]
[342207625,1731583832403,-368.89,9.71e-05,2]
[342207627,1731583832412,-17467.521,9.78e-05,2]
[342207629,1731583832421,-150.0,9.879e-05,2]
[342207631,1731583832430,-129593.31271396,9.88e-05,2]
[342207635,1731583832460,-464395.78912039,9.88e-05,2]
[342208021,1731583838049,-294.71997511,9.88e-05,2]
[342208022,1731583838060,-4750.94106904,9.88e-05,2]
[342208024,1731583838071,-659.97732,9.88e-05,2]
[342208025,1731583838117,-17443.8,9.88e-05,2]
[342208026,1731583838129,-1890707.86310186,9.88e-05,2]
[342208027,1731583838139,-500.0,9.9e-05,2]
[342208028,1731583838149,-327.85873605,9.9e-05,2]
[342208029,1731583838158,-200.0,9.9e-05,2]
[342208030,1731583838168,-1000.0,9.9e-05,2]
[342208031,1731583838178,-258478.3666,9.9e-05,2]
[342208032,1731583838188,-795.7557,9.9e-05,2]
[342208033,1731583838198,-2156.551,9.9e-05,2]
[342208034,1731583838209,-150.0,9.93e-05,2]
[342208035,1731583838219,-432.72,9.93e-05,2]
[342208036,1731583838228,-763.3,9.93e-05,2]
[342208037,1731583838238,-259880.51993517,9.999e-05,2]
[342208038,1731583838248,-24379196.73539912,0.0001,2]
[342208039,1731583838260,-1822.76536493,0.0001,2]
[342208040,1731583838285,-6601.5520943,0.0001,2]
[342208041,1731583838297,-3994.90374,0.0001,2]
[342208042,1731583838312,-6023.93985903,0.0001,2]
[342208043,1731583838323,-994.20051966,0.0001,2]
[342208044,1731583838335,-2361.64370616,0.0001,2]
[342208045,1731583838350,-2333.19504004,0.0001,2]
[342208046,1731583838361,-2135.225,0.0001,2]
[342208047,1731583838371,-95950.56201883,0.0001,2]
[342208048,1731583838387,-26169.23899999,0.0001,2]
[342208049,1731583838398,-17767.75000442,0.0001,2]
[342208050,1731583838409,-2015.6291342,0.0001,2]
[342208051,1731583838420,-1197.62365238,0.0001,2]
[342208053,1731583838431,-428.19592875,0.0001,2]
[342208056,1731583838442,-91748.0,0.0001,2]
[342208096,1731583840073,-2135.94999992,0.0001,2]
[342208097,1731583840170,-860.59820197,0.0001,2]
[342208098,1731583840182,-162000.0,0.0001,2]
[342208099,1731583840392,-26830.101575,0.0001,2]
[342208108,1731583843076,-7808.40038675,0.0001,2]
[342208109,1731583843087,-11490.58125438,0.0001,2]
[342208110,1731583843103,-6578.99102642,0.0001,2]
[342208111,1731583843114,-4434.86258186,0.0001,2]
[342208112,1731583843126,-2279.3991421,0.0001,2]
[342208113,1731583843186,-463.776336,0.0001,2]
[342208114,1731583843197,-3060.01956456,0.0001,2]
[342208115,1731583843209,-13185.0396431,0.0001,2]
[342208116,1731583843220,-2641.44494698,0.0001,2]
[342208117,1731583843232,-3763.81392146,0.0001,2]
[342208118,1731583843248,-13623.83525002,0.0001,2]
[342208119,1731583843295,-21029.3668,0.0001,2]
[342208120,1731583843371,-1827.65441691,0.0001,2]
[342208121,1731583843382,-2273.45920837,0.0001,2]
[342208160,1731583846024,-763.3,9.21e-05,2]
[342208161,1731583846034,-432.72,9.21e-05,2]
[342208162,1731583846043,-967.89,9.278e-05,2]
[342208163,1731583846052,-46574.77298756,0.0001,2]
[342208164,1731583846102,-1358.465,0.0001,2]
[342208165,1731583846113,-1329.55981771,0.0001,2]
[342208192,1731583847304,-2087.2093109,0.0001,2]
[342208193,1731583847316,-710.7571,0.0001,2]
[342208194,1731583847347,-8704.51050931,0.0001,2]
[342208195,1731583847360,-463.92363484,0.0001,2]
[342208196,1731583847371,-16273.42903477,0.0001,2]
[342208197,1731583847382,-381.42680699,0.0001,2]
[342208198,1731583847416,-673.73555184,0.0001,2]
[342208199,1731583847427,-841.62090882,0.0001,2]
[342208200,1731583847439,-8757.2796,0.0001,2]
[342208201,1731583847450,-6574.19999992,0.0001,2]
[342208202,1731583916131,-566.02,0.00016658,30]
[342208203,1731583916208,-566.02,0.00019242,30]
[342208204,1731583916278,-566.02,0.00021826,30]
[342208205,1731583916347,-566.02,0.0002441,30]
[342208206,1731583916417,-566.02,0.00026994,30]
[342208207,1731583916477,-500.0,0.00027397,30]
[342208208,1731583916530,-243.82,0.00027397,32]
[342208209,1731583916585,-201.20047025,0.00027397,60]
[342208210,1731583916640,-161.156207,0.00027897,30]
[342208211,1731583916707,-566.02,0.00029578,30]
[342208212,1731583916784,-548.0,0.00030613,30]
[342208213,1731583916848,-566.02,0.00032162,30]
[342208214,1731583916912,-150.0,0.00033,30]
[342208215,1731583916965,-10000.0,0.00033,120]
[342208216,1731583917018,-500.0,0.00033164,60]
[342208217,1731583917072,-10000.0,0.0003325,120]
[342208218,1731583917124,-10000.0,0.000335,120]
[342208219,1731583917178,-768.0,0.00033674,30]
[342208220,1731583917228,-10000.0,0.0003375,120]
[342208221,1731583917285,-4200.0,0.00033986,60]
[342208222,1731583917340,-1200.0,0.00033986,60]
[342208223,1731583917391,-3100.0,0.00033986,60]
[342208224,1731583917451,-10000.0,0.00034,120]
[342208225,1731583917502,-385.341977,0.00034,30]
[342208226,1731583917558,-500.0,0.00034246,60]
[342208227,1731583917609,-10000.0,0.0003425,120]
[342208228,1731583917664,-500.0,0.0003426,60]
[342208229,1731583917720,-1000000.0,0.000344,120]
[342208230,1731583917779,-10000.0,0.000345,120]
[342208231,1731583917830,-500.0,0.0003452,60]
[342208232,1731583917885,-7744.611,0.00034643,120]
[342208233,1731583917945,-7744.612,0.00034643,120]
[342208234,1731583918332,-7744.611,0.00034643,120]
[342208235,1731583918387,-7744.611,0.00034643,120]
[342208236,1731583918447,-7744.611,0.00034643,120]
[342208237,1731583918505,-566.02,0.00034746,120]
[342208238,1731583918559,-10000.0,0.0003475,120]
[342208239,1731583918612,-751.036,0.00034762,40]
[342208240,1731583918668,-500.0,0.00034794,60]
[342208241,1731583920672,-9746.0,0.00035,94]
[342208242,1731583920735,-10000.0,0.00035,120]
[342208243,1731583920796,-4451.0,0.00035,60]
[342208244,1731583920857,-784.4,0.00035,30]
[342208245,1731583920917,-500.0,0.00035068,60]
[342208246,1731583920976,-4200.0,0.00035082,60]
[342208247,1731583921034,-1200.0,0.00035082,60]
[342208248,1731583921094,-3100.0,0.00035082,60]
[342208249,1731583921160,-161.71585013,0.00035202,30]
[342208250,1731583921221,-1186.09061115,0.00035202,30]
[342208251,1731583921284,-800.0,0.00035233,120]
[342208252,1731583921345,-10000.0,0.0003525,120]
[342208253,1731583921410,-567.52,0.000353,30]
[342208254,1731583921479,-158.14213,0.000353,31]
[342208255,1731583921539,-500.0,0.00035342,60]
[342208256,1731583921603,-500.0,0.00035356,30]
[342208257,1731583921663,-500.0,0.00035356,30]
[342208258,1731583921724,-500.0,0.00035356,30]
[342208259,1731583921784,-500.0,0.00035356,30]
[342208260,1731583921843,-500.0,0.00035356,30]
[342208261,1731583921906,-200.0,0.00035356,30]
[342208262,1731583921968,-500.0,0.00035356,30]
[342208263,1731583922025,-500.0,0.00035356,30]
[342208264,1731583922083,-500.0,0.00035356,30]
[342208265,1731583922141,-500.0,0.00035356,30]
[342208266,1731583922204,-500.0,0.00035356,30]
[342208267,1731583922263,-500.0,0.00035356,30]
[342208268,1731583922323,-500.0,0.00035356,30]
[342208269,1731583922384,-506.04971842,0.00035356,30]
[342208270,1731583922445,-500.0,0.00035356,60]
[342208271,1731583922511,-250346.86483163,0.000354,120]
[342208272,1731583922568,-16000.0,0.000354,120]
[342208273,1731583922631,-205.22167417,0.0003543,120]
[342208274,1731583922688,-1000.0,0.0003545,120]
[342208275,1731583922751,-150.0,0.00035463,120]
[342208276,1731583922809,-150.0,0.00035481,120]
[342208277,1731583922872,-150.0,0.00035493,120]
[342208278,1731583922953,-11000.0,0.000355,40]
[342208279,1731583923021,-33866.17433426,0.000355,60]
[342208280,1731583923079,-10000.0,0.000355,120]
[342208281,1731583923138,-1000.0,0.00035528,30]
[342208282,1731583923200,-150.0,0.00035528,120]
[342208283,1731583923262,-151.0,0.00035589,120]
[342208284,1731583923320,-8552.37,0.00035592,30]
[342208285,1731583923381,-8552.37,0.00035592,30]
[342208286,1731583923441,-33586.53286,0.000356,60]
[342208287,1731583923503,-150.0,0.00035608,120]
[342208288,1731583923563,-150.0,0.00035613,120]
[342208289,1731583923625,-500.0,0.00035616,120]
[342208290,1731583923684,-500.0,0.00035616,120]
[342208291,1731583923748,-500.0,0.00035616,120]
[342208292,1731583923807,-500.0,0.00035616,120]
[342208293,1731583923870,-500.0,0.00035616,120]
[342208294,1731583923932,-500.0,0.00035616,120]
[342208295,1731583923994,-500.0,0.00035616,120]
[342208296,1731583924055,-500.0,0.00035616,120]
[342208297,1731583924118,-500.0,0.00035616,120]
[342208298,1731583924179,-500.0,0.00035616,120]
[342208299,1731583924241,-500.0,0.00035616,120]
[342208300,1731583924302,-607.74386305,0.00035616,120]
[342208301,1731583924365,-500.0,0.00035616,60]
[342208302,1731583924426,-1051.33,0.00035616,120]
[342208303,1731583924504,-1051.33,0.00035616,120]
[342208304,1731583924568,-1051.33,0.00035616,120]
[342208305,1731583924631,-1051.33,0.00035616,120]
[342208306,1731583924692,-1051.33,0.00035616,120]
[342208307,1731583924758,-1051.33,0.00035616,120]
[342208308,1731583924819,-1051.33,0.00035616,120]
[342208309,1731583924884,-1051.33,0.00035616,120]
[342208310,1731583924947,-1051.33,0.00035616,120]
[342208311,1731583925013,-1051.33,0.00035616,120]
[342208312,1731583925076,-1051.33,0.00035616,120]
[342208313,1731583925140,-1051.33,0.00035616,120]
[342208314,1731583925203,-1051.33,0.00035616,120]
[342208315,1731583925267,-1051.33,0.00035616,120]
[342208316,1731583925332,-1051.33,0.00035616,120]
[342208317,1731583925400,-1051.33,0.00035616,120]
[342208318,1731583925468,-1051.33,0.00035616,120]
[342208319,1731583925530,-1051.33,0.00035616,120]
[342208320,1731583925591,-1051.33,0.00035616,120]
[342208321,1731583925654,-1051.33,0.00035616,120]
[342208322,1731583925716,-1051.33,0.00035616,120]
[342208323,1731583925779,-1051.33,0.00035616,120]
[342208324,1731583925842,-1051.33,0.00035616,120]
[342208325,1731583925917,-1051.42259277,0.00035616,120]
[342208326,1731583927122,-7609.97,0.00035616,120]
[342208327,1731583927263,-7609.97,0.00035616,120]
[342208328,1731583927318,-7609.97,0.00035616,120]
[342208329,1731583927377,-7609.97,0.00035616,120]
[342208330,1731583927433,-7609.97,0.00035616,120]
[342208331,1731583927492,-7609.97,0.00035616,120]
[342208332,1731583927549,-7609.97,0.00035616,120]
[342208333,1731583927607,-7609.97,0.00035616,120]
[342208334,1731583927664,-7609.97,0.00035616,120]
[342208335,1731583927722,-7609.97,0.00035616,120]
[342208336,1731583927782,-7609.97,0.00035616,120]
[342208337,1731583927840,-7609.97,0.00035616,120]
[342208338,1731583927900,-7609.97,0.00035616,120]
[342208339,1731583927965,-7609.97,0.00035616,120]
[342208340,1731583928023,-7609.97,0.00035616,120]
[342208341,1731583928088,-7609.97,0.00035616,120]
[342208342,1731583928147,-7609.97,0.00035616,120]
[342208343,1731583928206,-7609.97,0.00035616,120]
[342208344,1731583928262,-7609.97,0.00035616,120]
[342208345,1731583928325,-7609.97,0.00035616,120]
[342208346,1731583928389,-7609.97,0.00035616,120]
[342208347,1731583928445,-7609.97,0.00035616,120]
[342208348,1731583928501,-7609.97,0.00035616,120]
[342208349,1731583928556,-7610.15433757,0.00035616,120]
[342208350,1731583928616,-33529.5362,0.000357,60]
[342208351,1731583928668,-1000.0,0.00035726,30]
[342208352,1731583928725,-10000.0,0.0003575,120]
[342208353,1731583928779,-32111.6961586,0.000358,60]
[342208354,1731583928835,-33253.8566,0.000358,60]
[342208355,1731583928888,-222.22222,0.000358,120]
[342208356,1731583928946,-8552.37,0.00035865,30]
[342208357,1731583928999,-8552.37,0.00035865,30]
[342208358,1731583929054,-150.0,0.00035867,120]
[342208359,1731583929107,-500.0,0.0003589,60]
[342208360,1731583929163,-500.0,0.000359,120]
[342208361,1731583929217,-2446.79913816,0.000359,30]
[342208362,1731583929270,-1000.0,0.00035924,30]
[342208363,1731583929328,-22102.59882531,0.00035927,30]
[342208364,1731583929383,-36196.00558427,0.00035927,120]
[342208365,1731583929437,-548.73398901,0.00035927,120]
[342208366,1731583929491,-150.0,0.00035931,120]
[342208367,1731583929548,-1000.0,0.00035952,120]
[342208368,1731583929602,-1000.0,0.00035952,120]
[342208369,1731583929660,-150.0,0.00035979,120]
[342208370,1731583929718,-50000.0,0.00036,36]
[342208371,1731583929774,-10000.0,0.00036,120]
[342208372,1731583929830,-10324.48760045,0.00036,60]
[342208373,1731583929885,-15924.13427109,0.00036,30]
[342208374,1731583929942,-150.0,0.00036,120]
[342208375,1731583929994,-500.0,0.00036,120]
[342208376,1731583930047,-1800.0,0.00036,37]
[342208377,1731583930108,-1259.2079342,0.00036,120]
[342208378,1731583930167,-1000.0,0.00036,75]
[342208379,1731583930225,-33773.79,0.00036,120]
[342208380,1731583930283,-250.0,0.00036,30]
[342208381,1731583930343,-150.0,0.0003604,120]
[342208382,1731583930397,-150.0,0.00036059,120]
[342208383,1731583930457,-1000.0,0.00036084,120]
[342208384,1731583930507,-1000.0,0.00036084,120]
[342208385,1731583930561,-150.0,0.00036087,120]
[342208386,1731583930611,-1000.0,0.00036123,30]
[342208387,1731583930664,-8552.37,0.00036139,30]
[342208388,1731583930715,-8552.37,0.00036139,30]
[342208389,1731583930771,-500.0,0.00036164,60]
[342208390,1731583930824,-150.0,0.00036167,120]
[342208391,1731583930876,-4200.0,0.00036178,60]
[342208392,1731583930931,-1200.0,0.00036178,60]
[342208393,1731583930983,-3100.0,0.00036178,60]
[342208394,1731583931038,-150.0,0.00036215,120]
[342208395,1731583931090,-150.0,0.00036234,120]
[342208396,1731583931144,-150.0,0.00036245,120]
[342208397,1731583931199,-1000.0,0.00036321,30]
[342208398,1731583931255,-150.0,0.00036322,120]
[342208399,1731583931311,-150.0,0.00036374,120]
[342208400,1731583931370,-150.0,0.00036385,120]
[342208401,1731583931428,-150.0,0.00036386,120]
[342208402,1731583931488,-150.0,0.00036409,120]
[342208403,1731583931544,-150.0,0.0003642,120]
[342208404,1731583931598,-636.72,0.00036438,60]
[342208405,1731583931652,-500.0,0.00036452,60]
[342208406,1731583931716,-10000.0,0.000365,120]
[342208407,1731583931769,-1000.0,0.00036519,30]
[342208408,1731583931825,-150.0,0.00036536,120]
[342208409,1731583931880,-150.0,0.00036553,120]
[342208410,1731583931936,-150.0,0.00036608,120]
[342208411,1731583931989,-150.0,0.00036667,120]
[342208412,1731583932043,-150.0,0.00036682,120]
[342208413,1731583932098,-1000.0,0.00036718,30]
[342208414,1731583932153,-10000.0,0.0003675,120]
[342208415,1731583932212,-150.0,0.00036755,120]
[342208416,1731583932267,-150.0,0.00036763,120]
[342208417,1731583932320,-150.0,0.00036766,120]
[342208418,1731583932377,-150.0,0.0003677,120]
[342208419,1731583932429,-150.0,0.00036779,120]
[342208420,1731583932483,-150.0,0.00036784,120]
[342208421,1731583932794,-34592.20401464,0.000368,60]
[342208422,1731583932848,-3500.89,0.000368,60]
[342208423,1731583932903,-150.0,0.00036816,120]
[342208424,1731583932961,-150.0,0.00036839,120]
[342208425,1731583933013,-150.0,0.00036857,120]
[342208426,1731583933066,-7615.0,0.000369,90]
[342208427,1731583933117,-1000.0,0.00036916,30]
[342208428,1731583933170,-150.0,0.00036941,120]
[342208429,1731583933220,-150.0,0.00036979,120]
[342208430,1731583933276,-50000.0,0.00037,37]
[342208431,1731583933327,-4970.13,0.00037,30]
[342208432,1731583933382,-500.0,0.00037,120]
[342208433,1731583933432,-1100.0,0.00037,120]
[342208434,1731583933482,-459.80355948,0.00037,120]
[342208435,1731583933532,-33852.86695,0.00037,60]
[342208436,1731583933584,-332.44017154,0.00037,30]
[342208437,1731583933632,-150.0,0.00037,120]
[342208438,1731583933684,-10000.0,0.00037,120]
[342208439,1731583933737,-1800.0,0.00037,38]
[342208440,1731583933789,-3600.0,0.00037,38]
[342208441,1731583933844,-10000.0,0.00037,120]
[342208442,1731583933898,-150.0,0.00037018,120]
[342208443,1731583933956,-1075.0,0.00037042,30]
[342208444,1731583934009,-150.0,0.00037055,120]
[342208445,1731583934065,-150.0,0.00037082,120]
[342208446,1731583934116,-222.22222,0.000371,120]
[342208447,1731583934171,-1000.0,0.00037114,30]
[342208448,1731583934224,-150.0,0.00037128,120]
[342208449,1731583934278,-150.0,0.00037156,120]
[342208450,1731583934349,-150.0,0.00037172,120]
[342208451,1731583934403,-150.0,0.00037174,120]
[342208452,1731583934461,-150.0,0.00037215,120]
[342208453,1731583934514,-9083.32,0.00037219,90]
[342208454,1731583934566,-10720.6,0.00037241,117]
[342208455,1731583934615,-4200.0,0.00037274,60]
[342208456,1731583934667,-1200.0,0.00037274,60]
[342208457,1731583934717,-3100.0,0.00037274,60]
[342208458,1731583934771,-150.0,0.00037296,120]
[342208459,1731583934825,-1000.0,0.00037312,30]
[342208460,1731583934879,-566.02,0.0003733,120]
[342208461,1731583934933,-150.0,0.00037359,120]
[342208462,1731583934987,-150.0,0.00037408,120]
[342208463,1731583935056,-150.0,0.00037418,120]
[342208464,1731583935111,-36196.00558427,0.00037427,120]
[342208465,1731583935170,-151.0,0.00037452,120]
[342208466,1731583935226,-150.0,0.00037459,120]
[342208467,1731583935282,-5900.40747383,0.000375,120]
[342208468,1731583935339,-1000.0,0.00037511,30]
[342208469,1731583935395,-150.0,0.00037541,120]
[342208470,1731583935451,-238.40984138,0.00037548,60]
[342208471,1731583935505,-150.0,0.00037585,120]
[342208472,1731583935559,-150.0,0.00037707,120]
[342208473,1731583935613,-1000.0,0.00037709,30]
[342208474,1731583935671,-1000.0,0.00037907,30]
[342208475,1731583935726,-8000.0,0.00037987,31]